fUST/lending_fUST_20251209
["ID","MTS","AMOUNT","RATE_DAILY","PERIOD"]
[397652116,1765217440381,-300.0,7.464e-05,2]
[397652117,1765217440391,-300.0,7.464e-05,2]
[397652120,1765217440400,-300.0,7.464e-05,2]
[397652122,1765217440410,-300.0,7.464e-05,2]
[397652124,1765217440420,-600.0,7.519e-05,2]
[397652126,1765217440430,-397.5243554,7.52e-05,2]
[397652128,1765217440439,-23466.8039674,7.547e-05,2]
[397652130,1765217440449,-756.71378595,7.607e-05,2]
[397652132,1765217440458,-727.0,7.772e-05,2]
[397652134,1765217440468,-151.0,7.772e-05,2]
[397652136,1765217440477,-6157.33,7.793e-05,2]
[397652138,1765217440488,-296.08603718,7.808e-05,2]
[397652140,1765217440497,-303.65891007,7.808e-05,2]
[397652142,1765217440507,-756.71378595,7.821e-05,2]
[397652144,1765217440518,-727.0,7.909e-05,2]
[397652146,1765217440527,-154.42052881,7.909e-05,2]
[397652148,1765217440537,-756.71378595,8.036e-05,2]
[397652150,1765217440546,-500.0,8.045e-05,2]
[397652152,1765217440556,-551.0,8.045e-05,2]
[397652154,1765217440566,-500.0,8.045e-05,2]
[397652156,1765217440575,-500.0,8.045e-05,2]
[397652158,1765217440585,-151.0,8.045e-05,2]
[397652160,1765217440595,-159.13180362,8.045e-05,2]
[397652162,1765217440605,-151.0,8.045e-05,2]
[397652164,1765217440617,-267.85726964,8.045e-05,2]
[397652166,1765217440627,-500.0,8.045e-05,2]
[397652169,1765217440637,-500.0,8.045e-05,2]
[397652171,1765217440647,-500.0,8.045e-05,2]
[397652173,1765217440657,-500.0,8.045e-05,2]
[397652175,1765217440667,-500.0,8.045e-05,2]
[397652177,1765217440677,-500.0,8.045e-05,2]
[397652179,1765217440687,-500.0,8.045e-05,2]
[397652181,1765217440696,-500.0,8.045e-05,2]
[397652183,1765217440705,-2487.15318209,8.045e-05,2]
[397652185,1765217440715,-500.0,8.045e-05,2]
[397652187,1765217440724,-470.46064178,8.045e-05,2]
[397652189,1765217440734,-4835.02578598,8.045e-05,2]
[397652191,1765217440743,-727.0,8.046e-05,2]
[397652193,1765217440752,-189.319,8.047e-05,2]
[397652195,1765217440762,-273.0,8.05e-05,2]
[397652197,1765217440772,-4401.14433323,8.1e-05,2]
[397652199,1765217440781,-8209.77,8.132e-05,2]
[397652201,1765217440790,-500.0,8.182e-05,2]
[397652203,1765217440800,-551.0,8.182e-05,2]
[397652239,1765217441124,-500.0,8.182e-05,2]
[397652243,1765217441155,-500.0,8.182e-05,2]
[397652245,1765217441164,-151.0,8.182e-05,2]
[397652247,1765217441173,-727.0,8.183e-05,2]
[397652249,1765217441183,-1885.745707,8.219e-05,2]
[397652251,1765217441192,-500.0,8.219e-05,2]
[397652253,1765217441201,-500.0,8.219e-05,2]
[397652255,1765217441211,-500.0,8.219e-05,2]
[397652257,1765217441220,-645.16,8.219e-05,2]
[397652259,1765217441229,-500.0,8.219e-05,2]
[397652261,1765217441238,-856.62,8.219e-05,2]
[397652263,1765217441247,-500.0,8.219e-05,2]
[397652265,1765217441256,-500.0,8.219e-05,2]
[397652267,1765217441265,-500.0,8.219e-05,2]
[397652269,1765217441274,-648.86,8.219e-05,2]
[397652271,1765217441283,-637.48,8.219e-05,2]
[397652273,1765217441293,-614.95,8.219e-05,2]
[397652275,1765217441304,-500.0,8.219e-05,2]
[397652277,1765217441314,-500.0,8.219e-05,2]
[397652279,1765217441324,-500.0,8.219e-05,2]
[397652280,1765217441333,-229.19052936,8.219e-05,2]
[397652282,1765217441342,-500.0,8.219e-05,2]
[397652284,1765217441351,-589.9,8.219e-05,2]
[397652286,1765217441362,-500.0,8.219e-05,2]
[397652288,1765217441371,-500.0,8.219e-05,2]
[397652290,1765217441381,-640.69,8.219e-05,2]
[397652292,1765217441390,-10.18522983,8.219e-05,2]
[397652455,1765217442959,-694.0900242,7.245e-05,2]
[397652729,1765217445856,-1097.428497,7.245e-05,2]
[397659697,1765218245270,170.07061027,0.00010822,7]
[397659712,1765218359111,-260.86550175,6.466e-05,2]
[397659713,1765218413131,-182.72845871,6.401e-05,2]
[397659726,1765218548478,-5000.0,6.337e-05,2]
[397659727,1765218548749,-3213.50865994,6.401e-05,2]
[397659728,1765218553154,-2337.75424901,6.337e-05,2]
[397659730,1765218567082,-2401.38024924,6.337e-05,2]
[397659731,1765218567104,-354.37975076,6.401e-05,2]
[397659732,1765218568091,-1249.38313059,6.401e-05,2]
[397659733,1765218568111,-300.0,6.433e-05,2]
[397659734,1765218568130,-299.04174946,6.434e-05,2]
[397659735,1765218568149,-1200.0,6.594e-05,2]
[397659736,1765218568169,-300.0,6.595e-05,2]
[397659737,1765218568191,-1200.0,6.596e-05,2]
[397659738,1765218568211,-300.0,6.628e-05,2]
[397659739,1765218568232,-238.0,6.629e-05,2]
[397659740,1765218568505,-300.0,6.629e-05,2]
[397659741,1765218568524,-242.79149861,6.732e-05,2]
[397659742,1765218570144,-273.20850139,6.732e-05,2]
[397659743,1765218570166,-500.0,7.075e-05,2]
[397659744,1765218570184,-500.0,7.075e-05,2]
[397659745,1765218570204,-500.0,7.075e-05,2]
[397659746,1765218570227,-500.0,7.075e-05,2]
[397659747,1765218570246,-500.0,7.075e-05,2]
[397659748,1765218570267,-500.0,7.075e-05,2]
[397659749,1765218570285,-450.15916011,7.075e-05,2]
[397659750,1765218570306,-500.0,7.075e-05,2]
[397659751,1765218570325,-500.0,7.075e-05,2]
[397659752,1765218570344,-500.0,7.075e-05,2]
[397659753,1765218570364,-500.0,7.075e-05,2]
[397659754,1765218570385,-500.0,7.075e-05,2]
[397659755,1765218570404,-500.0,7.075e-05,2]
[397659756,1765218570425,-500.0,7.075e-05,2]
[397659757,1765218570446,-500.0,7.075e-05,2]
[397659758,1765218570468,-500.0,7.075e-05,2]
[397659759,1765218570488,-267.95690024,7.075e-05,2]
[397659760,1765218570510,-500.0,7.075e-05,2]
[397659761,1765218570530,-518.21078329,7.075e-05,2]
[397659762,1765218570549,-642.12083768,7.075e-05,2]
[397659763,1765218570568,-500.0,7.075e-05,2]
[397659764,1765218570590,-500.0,7.075e-05,2]
[397659765,1765218570610,-500.0,7.075e-05,2]
[397659766,1765218570633,-500.0,7.075e-05,2]
[397659767,1765218570653,-500.0,7.075e-05,2]
[397659768,1765218570673,-500.0,7.075e-05,2]
[397659769,1765218570694,-500.0,7.075e-05,2]
[397659770,1765218570714,-500.0,7.075e-05,2]
[397659771,1765218570733,-500.0,7.075e-05,2]
[397659772,1765218570752,-514.78572516,7.075e-05,2]
[397659773,1765218570771,-500.0,7.075e-05,2]
[397659774,1765218570793,-500.0,7.075e-05,2]
[397659775,1765218570814,-500.0,7.075e-05,2]
[397659776,1765218570835,-500.0,7.075e-05,2]
[397659777,1765218570856,-374.84147599,7.075e-05,2]
[397659778,1765218570876,-277.80786666,7.075e-05,2]
[397659779,1765218574213,-222.19213334,7.075e-05,2]
[397659780,1765218574233,-500.0,7.075e-05,2]
[397659781,1765218574254,-500.0,7.075e-05,2]
[397659782,1765218574274,-500.0,7.075e-05,2]
[397659783,1765218574295,-500.0,7.075e-05,2]
[397659784,1765218574317,-500.0,7.075e-05,2]
[397659785,1765218574338,-500.0,7.075e-05,2]
[397659786,1765218574360,-373.57328384,7.075e-05,2]
[397659787,1765218574380,-420.0,7.076e-05,2]
[397659788,1765218574400,-272.905,7.079e-05,2]
[397659789,1765218574420,-250.0,7.176e-05,3]
[397659790,1765218574446,-1884.48152272,7.179e-05,3]
[397659791,1765218574472,-362176.14969029,7.219e-05,2]
[397659857,1765218632276,-1000.0,7.119e-05,2]
[397659858,1765218632291,-2117.546548,7.119e-05,2]
[397659859,1765218632303,-521.0,7.119e-05,2]
[397659860,1765218632314,-5000.0,7.147e-05,2]
[397659861,1765218632326,-592.83989226,7.353e-05,3]
[397659862,1765218632337,-415.0,7.366e-05,2]
[397659863,1765218632352,-245.71325957,7.418e-05,2]
[397659864,1765218632365,-300.0,7.463e-05,2]
[397659865,1765218632377,-300.0,7.463e-05,2]
[397659866,1765218632390,-300.0,7.463e-05,2]
[397659867,1765218632402,-300.0,7.463e-05,2]
[397659868,1765218632414,-300.0,7.463e-05,2]
[397659869,1765218632427,-300.0,7.463e-05,2]
[397659870,1765218632441,-300.0,7.463e-05,2]
[397659871,1765218632453,-300.0,7.463e-05,2]
[397659872,1765218632466,-300.0,7.463e-05,2]
[397659873,1765218632477,-300.0,7.463e-05,2]
[397659874,1765218632492,-300.0,7.463e-05,2]
[397659875,1765218632504,-300.0,7.463e-05,2]
[397659876,1765218632517,-300.0,7.463e-05,2]
[397659877,1765218632529,-300.0,7.463e-05,2]
[397659878,1765218632544,-300.0,7.463e-05,2]
[397659879,1765218632555,-600.0,7.463e-05,2]
[397659880,1765218632567,-454.69404655,7.585e-05,2]
[397659881,1765218632578,-500.0,7.796e-05,2]
[397659882,1765218632591,-500.0,7.796e-05,2]
[397659883,1765218632603,-500.0,7.796e-05,2]
[397659884,1765218632614,-500.0,7.796e-05,2]
[397659885,1765218632626,-500.0,7.796e-05,2]
[397659886,1765218632638,-500.0,7.796e-05,2]
[397659887,1765218632651,-500.0,7.796e-05,2]
[397659888,1765218632663,-500.0,7.796e-05,2]
[397659889,1765218632674,-500.0,7.796e-05,2]
[397659890,1765218632687,-500.0,7.796e-05,2]
[397659891,1765218632696,-500.0,7.796e-05,2]
[397659892,1765218632706,-2487.15318209,7.796e-05,2]
[397659893,1765218632715,-1791.22,7.822e-05,2]
[397659894,1765218632725,-454.69404655,8.014e-05,2]
[397659895,1765218632735,-189.3208857,8.047e-05,2]
[397659896,1765218632744,-3222.447445,8.086e-05,2]
[397659897,1765218632754,-2142.3192298,8.095e-05,2]
[397659898,1765218632763,-4117.38187878,8.095e-05,2]
[397659916,1765218637987,-913.97048052,8.095e-05,2]
[397659917,1765218637998,-1205.2257688,8.095e-05,2]
[397659918,1765218638007,-605.0,8.183e-05,2]
[397659919,1765218638016,-500.0,8.183e-05,2]
[397659920,1765218638025,-505.0,8.183e-05,2]
[397659921,1765218638035,-294.3719153,8.183e-05,2]
[397659922,1765218638046,-205.6280847,8.183e-05,2]
[397659923,1765218638055,-500.0,8.183e-05,2]
[397659924,1765218638064,-151.0,8.183e-05,2]
[397659925,1765218638073,-151.0,8.183e-05,2]
[397659926,1765218638083,-151.0,8.183e-05,2]
[397659927,1765218638093,-151.0,8.183e-05,2]
[397659928,1765218638103,-151.0,8.183e-05,2]
[397659929,1765218638113,-3582.44,8.194e-05,2]
[397659930,1765218638123,-720.0,8.21e-05,2]
[397659931,1765218638133,-250.0,8.218e-05,2]
[397659932,1765218638142,-1257.163804,8.219e-05,2]
[397659934,1765218638151,-500.0,8.219e-05,2]
[397659936,1765218638161,-1467.93,8.219e-05,2]
[397659938,1765218638170,-328.35926878,8.219e-05,2]
[397659940,1765218638179,-697.61,8.219e-05,2]
[397659942,1765218638189,-500.0,8.219e-05,2]
[397659944,1765218638198,-500.0,8.219e-05,2]
[397659946,1765218638207,-500.0,8.219e-05,2]
[397659949,1765218638217,-568.05,8.219e-05,2]
[397659951,1765218638228,-500.0,8.219e-05,2]
[397659953,1765218638237,-1387.49,8.219e-05,2]
[397659955,1765218638246,-500.0,8.219e-05,2]
[397659957,1765218638256,-500.0,8.219e-05,2]
[397659959,1765218638266,-685.9,8.219e-05,2]
[397659961,1765218638276,-500.0,8.219e-05,2]
[397659963,1765218638285,-500.0,8.219e-05,2]
[397659965,1765218638295,-500.0,8.219e-05,2]
[397659967,1765218638305,-500.0,8.219e-05,2]
[397659969,1765218638314,-500.0,8.219e-05,2]
[397659971,1765218638324,-500.0,8.219e-05,2]
[397659973,1765218638333,-941.94,8.219e-05,2]
[397659975,1765218638343,-500.0,8.219e-05,2]
[397659977,1765218638353,-500.0,8.219e-05,2]
[397659979,1765218638362,-615.19,8.219e-05,2]
[397659981,1765218638371,-997.91,8.219e-05,2]
[397659982,1765218638380,-835.54,8.219e-05,2]
[397659984,1765218638390,-500.0,8.219e-05,2]
[397659986,1765218638400,-501.45203975,8.219e-05,2]
[397659988,1765218638410,-500.0,8.219e-05,2]
[397659990,1765218638419,-926.1,8.219e-05,2]
[397659992,1765218638428,-616.68,8.219e-05,2]
[397659995,1765218638441,-500.0,8.219e-05,2]
[397659997,1765218638451,-500.0,8.219e-05,2]
[397659999,1765218638460,-643.49,8.219e-05,2]
[397660001,1765218638469,-497.16500077,8.219e-05,2]
[397660003,1765218638479,-1015.11,8.219e-05,2]
[397660005,1765218638488,-500.0,8.219e-05,2]
[397660007,1765218638498,-500.0,8.219e-05,2]
[397660009,1765218638507,-500.0,8.219e-05,2]
[397660010,1765218638517,-637.33793175,8.219e-05,2]
[397660013,1765218638527,-389.34626433,8.219e-05,2]
[397660015,1765218638536,-500.0,8.219e-05,2]
[397660017,1765218638545,-1147.20827715,8.219e-05,2]
[397660019,1765218638555,-2039.48138159,8.219e-05,2]
[397660021,1765218638565,-500.0,8.219e-05,2]
[397660023,1765218638575,-500.0,8.219e-05,2]
[397660025,1765218638584,-956.25,8.219e-05,2]
[397660027,1765218638594,-500.0,8.219e-05,2]
[397660029,1765218638603,-409.91924103,8.219e-05,2]
[397660031,1765218638614,-500.0,8.219e-05,2]
[397660033,1765218638623,-500.0,8.219e-05,2]
[397660035,1765218638633,-722.97,8.219e-05,2]
[397660037,1765218638642,-875.93,8.219e-05,2]
[397660039,1765218638652,-500.0,8.219e-05,2]
[397660041,1765218638662,-500.0,8.219e-05,2]
[397660043,1765218638672,-500.0,8.219e-05,2]
[397660045,1765218638681,-500.0,8.219e-05,2]
[397660047,1765218638691,-500.0,8.219e-05,2]
[397660068,1765218638700,-500.0,8.219e-05,2]
[397660072,1765218638919,-400.32160199,8.219e-05,2]
[397660074,1765218638929,-500.0,8.219e-05,2]
[397660076,1765218638939,-500.0,8.219e-05,2]
[397660078,1765218638948,-500.0,8.219e-05,2]
[397660080,1765218638958,-233.50847653,8.219e-05,2]
[397660082,1765218638967,-948.06,8.219e-05,2]
[397660084,1765218638977,-629.06,8.219e-05,2]
[397660086,1765218638987,-586.22,8.219e-05,2]
[397660088,1765218638997,-500.0,8.219e-05,2]
[397660090,1765218639009,-500.0,8.219e-05,2]
[397660092,1765218639019,-500.0,8.219e-05,2]
[397660094,1765218639029,-225.27998474,8.219e-05,2]
[397660096,1765218639040,-500.0,8.219e-05,2]
[397660098,1765218639050,-500.0,8.219e-05,2]
[397660100,1765218639060,-996.61,8.219e-05,2]
[397660102,1765218639070,-500.0,8.219e-05,2]
[397660104,1765218639079,-600.19,8.219e-05,2]
[397660106,1765218639089,-563.31354548,8.219e-05,2]
[397660108,1765218639098,-500.0,8.219e-05,2]
[397660110,1765218639107,-731.88,8.219e-05,2]
[397660112,1765218639118,-815.43,8.219e-05,2]
[397660114,1765218639128,-500.0,8.219e-05,2]
[397660116,1765218639137,-638.78,8.219e-05,2]
[397660118,1765218639147,-403.00400451,8.219e-05,2]
[397660120,1765218639157,-500.0,8.219e-05,2]
[397660122,1765218639167,-1617.82,8.219e-05,2]
[397660124,1765218639176,-500.0,8.219e-05,2]
[397660126,1765218639187,-664.18,8.219e-05,2]
[397660128,1765218639196,-480.0,8.219e-05,2]
[397660130,1765218639206,-500.0,8.219e-05,2]
[397660132,1765218639216,-611.6,8.219e-05,2]
[397660135,1765218639226,-500.0,8.219e-05,2]
[397660137,1765218639235,-500.0,8.219e-05,2]
[397660138,1765218639244,-500.0,8.219e-05,2]
[397660140,1765218639254,-547.13,8.219e-05,2]
[397660142,1765218639263,-500.0,8.219e-05,2]
[397660144,1765218639273,-500.0,8.219e-05,2]
[397660147,1765218639282,-500.0,8.219e-05,2]
[397660149,1765218639291,-282.92644837,8.219e-05,2]
[397660151,1765218639303,-500.0,8.219e-05,2]
[397660153,1765218639312,-500.0,8.219e-05,2]
[397660155,1765218639321,-786.4,8.219e-05,2]
[397660157,1765218639330,-934.07,8.219e-05,2]
[397660159,1765218639339,-500.0,8.219e-05,2]
[397660161,1765218639348,-500.0,8.219e-05,2]
[397660163,1765218639357,-1265.21,8.219e-05,2]
[397660165,1765218639367,-732.77,8.219e-05,2]
[397660167,1765218639377,-500.0,8.219e-05,2]
[397660169,1765218639390,-634.72,8.219e-05,2]
[397660171,1765218639401,-548.7,8.219e-05,2]
[397660172,1765218639417,-368.79941971,8.219e-05,2]
[397660174,1765218639427,-663.83895548,8.219e-05,2]
[397660176,1765218639436,-742.45,8.219e-05,2]
[397660178,1765218639449,-500.0,8.219e-05,2]
[397660180,1765218639459,-500.0,8.219e-05,2]
[397660182,1765218639468,-2012.61,8.219e-05,2]
[397660184,1765218639478,-830.16,8.219e-05,2]
[397660186,1765218639488,-625.37,8.219e-05,2]
[397660188,1765218639497,-500.0,8.219e-05,2]
[397660190,1765218639507,-520.98,8.219e-05,2]
[397660192,1765218639518,-747.48,8.219e-05,2]
[397660195,1765218639531,-793.0,8.219e-05,2]
[397660197,1765218639541,-500.0,8.219e-05,2]
[397660199,1765218639551,-853.03,8.219e-05,2]
[397660200,1765218639560,-594.78,8.219e-05,2]
[397660203,1765218639570,-500.0,8.219e-05,2]
[397660205,1765218639579,-500.0,8.219e-05,2]
[397660207,1765218639588,-500.0,8.219e-05,2]
[397660209,1765218639597,-615.28,8.219e-05,2]
[397660211,1765218639606,-628.95,8.219e-05,2]
[397660213,1765218639616,-500.0,8.219e-05,2]
[397660215,1765218639626,-500.0,8.219e-05,2]
[397660217,1765218639635,-1199.5,8.219e-05,2]
[397660219,1765218639645,-1044.08,8.219e-05,2]
[397660221,1765218639654,-500.0,8.219e-05,2]
[397660223,1765218639664,-695.48,8.219e-05,2]
[397660225,1765218639673,-500.0,8.219e-05,2]
[397660227,1765218639683,-500.0,8.219e-05,2]
[397660229,1765218639692,-500.0,8.219e-05,2]
[397660231,1765218639701,-533.59987959,8.219e-05,2]
[397660233,1765218639711,-1064.52,8.219e-05,2]
[397660235,1765218639720,-500.0,8.219e-05,2]
[397660237,1765218639730,-1366.86,8.219e-05,2]
[397660239,1765218639740,-500.0,8.219e-05,2]
[397660241,1765218639750,-2136.3,8.219e-05,2]
[397660243,1765218639759,-500.0,8.219e-05,2]
[397660245,1765218639768,-500.0,8.219e-05,2]
[397660247,1765218639778,-500.0,8.219e-05,2]
[397660249,1765218639787,-500.0,8.219e-05,2]
[397660251,1765218639796,-500.0,8.219e-05,2]
[397660253,1765218639806,-548.55,8.219e-05,2]
[397660255,1765218639815,-500.0,8.219e-05,2]
[397660257,1765218639824,-500.0,8.219e-05,2]
[397660259,1765218639834,-500.0,8.219e-05,2]
[397660261,1765218639843,-500.0,8.219e-05,2]
[397660263,1765218639852,-645.42,8.219e-05,2]
[397660265,1765218639861,-500.0,8.219e-05,2]
[397660268,1765218639873,-500.0,8.219e-05,2]
[397660270,1765218639883,-500.0,8.219e-05,2]
[397660271,1765218639892,-500.0,8.219e-05,2]
[397660273,1765218639901,-1438.73,8.219e-05,2]
[397660275,1765218639911,-963.98,8.219e-05,2]
[397660277,1765218639920,-563.38,8.219e-05,2]
[397660279,1765218639929,-500.0,8.219e-05,2]
[397660281,1765218639938,-502.2200439,8.219e-05,2]
[397660283,1765218639948,-500.0,8.219e-05,2]
[397660286,1765218639957,-500.0,8.219e-05,2]
[397660288,1765218639967,-500.0,8.219e-05,2]
[397660290,1765218639976,-500.0,8.219e-05,2]
[397660292,1765218639985,-1141.89,8.219e-05,2]
[397660294,1765218639994,-811.2,8.219e-05,2]
[397660296,1765218640004,-3183.50296908,8.219e-05,2]
[397660298,1765218640014,-4603.95,8.219e-05,2]
[397660300,1765218640023,-500.0,8.219e-05,2]
[397660302,1765218640032,-500.0,8.219e-05,2]
[397660304,1765218640042,-500.0,8.219e-05,2]
[397660306,1765218640052,-500.0,8.219e-05,2]
[397660308,1765218640061,-500.0,8.219e-05,2]
[397660310,1765218640070,-500.0,8.219e-05,2]
[397660312,1765218640079,-500.0,8.219e-05,2]
[397660314,1765218640088,-1115.03,8.219e-05,2]
[397660315,1765218640097,-500.0,8.219e-05,2]
[397660317,1765218640107,-500.0,8.219e-05,2]
[397660319,1765218640117,-500.0,8.219e-05,2]
[397660321,1765218640125,-500.0,8.219e-05,2]
[397660323,1765218640136,-933.06,8.219e-05,2]
[397660325,1765218640145,-500.0,8.219e-05,2]
[397660327,1765218640155,-743.3,8.219e-05,2]
[397660329,1765218640165,-1003.06,8.219e-05,2]
[397660331,1765218640174,-500.0,8.219e-05,2]
[397660333,1765218640183,-2154.15,8.219e-05,2]
[397660335,1765218640192,-540.6,8.219e-05,2]
[397660337,1765218640201,-699.82,8.219e-05,2]
[397660339,1765218640211,-920.49,8.219e-05,2]
[397660341,1765218640220,-500.0,8.219e-05,2]
[397660344,1765218640230,-1072.86,8.219e-05,2]
[397660346,1765218640239,-500.0,8.219e-05,2]
[397660348,1765218640248,-1147.24,8.219e-05,2]
[397660350,1765218640258,-500.0,8.219e-05,2]
[397660352,1765218640267,-931.44,8.219e-05,2]
[397660355,1765218640278,-500.0,8.219e-05,2]
[397660356,1765218640288,-500.0,8.219e-05,2]
[397660358,1765218640297,-500.0,8.219e-05,2]
[397660360,1765218640306,-613.12,8.219e-05,2]
[397660362,1765218640316,-500.0,8.219e-05,2]
[397660364,1765218640325,-1063.41,8.219e-05,2]
[397660366,1765218640334,-1062.77,8.219e-05,2]
[397660368,1765218640343,-500.0,8.219e-05,2]
[397660371,1765218640353,-1339.91,8.219e-05,2]
[397660372,1765218640362,-748.36,8.219e-05,2]
[397660375,1765218640372,-733.95,8.219e-05,2]
[397660376,1765218640381,-618.28,8.219e-05,2]
[397660378,1765218640390,-924.39,8.219e-05,2]
[397660380,1765218640399,-500.0,8.219e-05,2]
[397660382,1765218640408,-1313.73,8.219e-05,2]
[397660384,1765218640418,-500.0,8.219e-05,2]
[397660386,1765218640427,-1515.94,8.219e-05,2]
[397660389,1765218640437,-677.55,8.219e-05,2]
[397660391,1765218640450,-2258.94,8.219e-05,2]
[397660392,1765218640460,-500.0,8.219e-05,2]
[397660395,1765218640470,-500.0,8.219e-05,2]
[397660397,1765218640479,-904.91,8.219e-05,2]
[397660399,1765218640489,-621.83,8.219e-05,2]
[397660401,1765218640498,-500.0,8.219e-05,2]
[397660403,1765218640513,-1080.23,8.219e-05,2]
[397660405,1765218640522,-1145.35,8.219e-05,2]
[397660407,1765218640532,-500.0,8.219e-05,2]
[397660409,1765218640541,-500.0,8.219e-05,2]
[397660411,1765218640550,-500.0,8.219e-05,2]
[397660413,1765218640559,-500.0,8.219e-05,2]
[397660415,1765218640568,-1804.49,8.219e-05,2]
[397660417,1765218640577,-610.92,8.219e-05,2]
[397660419,1765218640586,-500.0,8.219e-05,2]
[397660421,1765218640596,-674.53,8.219e-05,2]
[397660423,1765218640604,-500.0,8.219e-05,2]
[397660425,1765218640614,-589.33,8.219e-05,2]
[397660427,1765218640623,-586.65,8.219e-05,2]
[397660429,1765218640633,-500.0,8.219e-05,2]
[397660431,1765218640642,-723.67,8.219e-05,2]
[397660433,1765218640651,-127.06810569,8.219e-05,2]
[397660511,1765218641401,-493.94189431,8.219e-05,2]
[397660513,1765218641411,-500.0,8.219e-05,2]
[397660515,1765218641420,-1178.97798494,8.219e-05,2]
[397660517,1765218641430,-500.0,8.219e-05,2]
[397660519,1765218641444,-500.0,8.219e-05,2]
[397660521,1765218641454,-626.98,8.219e-05,2]
[397660523,1765218641463,-2214.92,8.219e-05,2]
[397660525,1765218641473,-1941.35,8.219e-05,2]
[397660527,1765218641483,-830.69,8.219e-05,2]
[397660529,1765218641493,-1399.92,8.219e-05,2]
[397660531,1765218641502,-2256.8,8.219e-05,2]
[397660533,1765218641512,-580.88,8.219e-05,2]
[397660535,1765218641524,-500.0,8.219e-05,2]
[397660537,1765218641533,-1965.51,8.219e-05,2]
[397660540,1765218641544,-500.0,8.219e-05,2]
[397660542,1765218641553,-500.0,8.219e-05,2]
[397660544,1765218641562,-500.0,8.219e-05,2]
[397660546,1765218641572,-1175.32182655,8.219e-05,2]
[397660583,1765218641926,-250.47817345,8.219e-05,2]
[397660585,1765218641936,-98.54295595,8.219e-05,2]
[397660587,1765218641948,-401.45704405,8.219e-05,2]
[397660589,1765218641958,-1007.86,8.219e-05,2]
[397660591,1765218641968,-19.34295595,8.219e-05,2]
[397660593,1765218641980,-594.64704405,8.219e-05,2]
[397660595,1765218641990,-127.13275847,8.219e-05,2]
[397660597,1765218642001,-372.86724153,8.219e-05,2]
[397660599,1765218642011,-1162.15,8.219e-05,2]
[397660601,1765218642020,-131.64287282,8.219e-05,2]
[397660735,1765218643479,-196.43965558,7.795e-05,2]
[397660737,1765218643490,-334.97619169,7.795e-05,2]
[397660739,1765218643499,-293.56898196,7.795e-05,2]
[397660741,1765218643508,-86.54736904,7.795e-05,2]
[397660753,1765218643618,-20.30316208,7.795e-05,2]
[397660755,1765218643629,-395.17288924,7.795e-05,2]
[397660757,1765218643639,-500.0,7.795e-05,2]
[397660759,1765218643648,-472.04608442,7.795e-05,2]
[397660761,1765218643658,-468.78102634,8.219e-05,2]
[397660792,1765218643936,-194.49610084,8.219e-05,2]
[397660794,1765218643946,-196.27550291,8.219e-05,2]
[397660796,1765218643958,-338.64449709,8.219e-05,2]
[397660798,1765218643967,-170.19111512,8.219e-05,2]
[397661013,1765218646059,-945.99888488,8.219e-05,2]
[397661015,1765218646069,-500.0,8.219e-05,2]
[397661018,1765218646079,-465.84943785,8.219e-05,2]
[397661020,1765218646089,-529.35295824,8.219e-05,2]
[397661022,1765218646098,-500.0,8.219e-05,2]
[397661024,1765218646108,-500.0,8.219e-05,2]
[397661026,1765218646119,-565.74,8.219e-05,2]
[397661028,1765218646128,-500.0,8.219e-05,2]
[397661030,1765218646138,-500.0,8.219e-05,2]
[397661032,1765218646147,-6866.94,8.219e-05,2]
[397661034,1765218646157,-500.0,8.219e-05,2]
[397661036,1765218646167,-862.33,8.219e-05,2]
[397661038,1765218646176,-592.8,8.219e-05,2]
[397661040,1765218646186,-871.71,8.219e-05,2]
[397661042,1765218646197,-500.0,8.219e-05,2]
[397661045,1765218646207,-1258.18915395,8.219e-05,2]
[397670341,1765219083999,219.74,5.006e-05,2]
[397670342,1765219084270,219.74,5.006e-05,2]
[397670694,1765219626118,-870.61025444,6.505e-05,2]
[397670702,1765219643129,-4129.38974556,6.505e-05,2]
[397670703,1765219643154,-448.93058092,6.571e-05,2]